bitfinex-derivatives/quotes_ETHF0:USTF0_20250330
["timestamp","ask_amount","ask_price","bid_price","bid_amount"]
[1743357922255,15.25001622,1810.2,1810.1,3.216085]
[1743357922756,15.25001622,1810.2,1809.9,3.2078]
[1743357922757,19.19901622,1810.2,1809.9,3.2078]
[1743357922952,15.25001622,1810.1,1809.7,3.2078]
[1743357923261,15.25001622,1810.1,1809.8,1.10547]
[1743357923463,15.25001622,1810.0,1809.9,1.10544]
[1743357923763,15.25001622,1810.1,1809.9,1.10544]
[1743357923956,0.09613937,1811.8,1810.0,12.9438]
[1743357924157,1.10456,1811.4,1810.9,4.31259]
[1743357924357,3.2078,1811.2,1810.7,3.2078]
[1743357924560,15.25001622,1811.1,1810.7,3.2078]
[1743357924858,4.9136,1811.0,1810.7,4.31273]
[1743357925056,20.16361622,1811.0,1810.7,4.31271]
[1743357925257,4.921885,1811.0,1810.9,3.2078]
[1743357925458,20.17190122,1811.0,1810.8,1.10486]
[1743357925654,15.25001622,1810.9,1810.7,4.321015]
[1743357925859,19.41101622,1810.9,1810.7,3.216085]
[1743357926164,15.25001622,1810.8,1810.7,3.216085]
[1743357926561,15.25001622,1810.8,1810.7,4.321045]
[1743357926959,3.2078,1811.8,1811.1,1.10469]
[1743357927156,3.2078,1811.6,1811.1,0.93]
[1743357927361,3.2078,1811.6,1810.7,7.27620047]
[1743357927362,3.2078,1811.2,1810.5,1.10958991]
[1743357927557,1.10499,1810.7,1810.5,1.10958991]
[1743357927762,4.234,1810.7,1810.5,1.10958991]
[1743357927966,4.234,1810.7,1809.9,0.5528]
[1743357927967,11.18161575,1810.6,1809.9,0.5528]
[1743357928265,1.10511,1810.5,1810.1,1.10529]
[1743357928460,7.4398,1810.4,1810.2,0.008285]
[1743357928666,1.10521,1810.3,1809.9,3.2078]
[1743357928868,3.2078,1810.1,1809.7,3.2078]
[1743357929063,3.2078,1810.1,1809.8,1.1055]
[1743357929064,7.4388,1810.1,1809.8,1.1055]
[1743357929364,7.97381575,1810.0,1809.9,1.10545]
[1743357929866,7.97381575,1810.0,1809.9,4.31325]
[1743357930368,4.227,1810.3,1810.1,1.10531]
[1743357930561,7.97381575,1810.2,1810.1,1.10531]
[1743357930761,9.34071575,1810.2,1810.1,1.10531]
[1743357931165,9.34071575,1810.2,1810.0,1.10537]
[1743357931366,7.97381575,1810.1,1809.9,2.56903]
[1743357931563,1.4967,1810.0,1809.9,1.4636]
[1743357931767,9.47051575,1810.0,1809.9,2.56905]
[1743357932170,13.69151575,1810.0,1809.9,0.67621991]
[1743357932966,14.79690575,1810.0,1809.8,0.68450491]
[1743357933173,7.97381575,1809.9,1809.8,0.68450491]
[1743357933370,9.47051575,1809.9,1809.8,0.68450491]
[1743357933571,9.47051575,1809.9,1809.8,0.008285]
[1743357935169,9.47051575,1809.9,1809.8,1.113795]
[1743357935769,7.97381575,1809.9,1809.8,4.321595]
[1743357936270,7.97381575,1809.9,1809.8,5.72847922]
[1743357936578,7.97381575,1809.9,1809.8,4.99781491]
[1743357937074,7.97381575,1809.9,1809.8,5.72847922]
[1743357939666,7.97381575,1809.9,1809.8,3.89230491]
[1743357939872,9.36511575,1809.9,1809.8,5.7323138]
[1743357940067,9.36511575,1809.9,1809.8,5.73232655]
[1743357941069,7.97381575,1809.9,1809.8,2.52452655]
[1743357941270,7.97381575,1809.9,1809.8,5.73232655]
[1743357941877,7.97381575,1809.9,1809.8,5.73456971]
[1743357942584,9.07926575,1809.9,1809.8,1.42125971]
[1743357942782,12.28706575,1809.9,1809.8,1.42125971]
[1743357943077,11.18161575,1809.9,1809.4,3.2078]
[1743357943383,1.1057,1809.5,1809.3,1.10577]
[1743357943584,1.4281,1809.4,1809.2,3.2078]
[1743357943782,2.53387,1809.4,1809.2,4.31365]
[1743357943976,7.97381575,1809.3,1809.2,4.31365]
[1743357944184,9.40191575,1809.3,1809.2,4.31365]
[1743357944882,7.97381575,1809.3,1809.2,4.31365]
[1743357945079,0.008285,1809.5,1809.4,1.10575]
[1743357945281,7.98210075,1809.5,1809.4,4.31355]
[1743357954485,7.98210075,1809.5,1809.4,3.2078]
[1743357954486,9.08779075,1809.5,1809.4,3.2078]
[1743357954691,9.48830075,1809.5,1809.3,1.10577]
[1743357954889,7.97381575,1809.4,1809.3,1.10577]
[1743357955084,9.48001575,1809.4,1809.3,1.84150564]
[1743357955386,9.48001575,1809.4,1809.3,2.52543666]
[1743357955586,10.58576575,1809.4,1809.3,2.52543666]
[1743357955792,9.48001575,1809.4,1809.3,2.52543666]
[1743357956197,10.58576575,1809.4,1809.3,2.52543666]
[1743357956787,16.81381575,1809.4,1809.1,0.008285]
[1743357956993,7.97381575,1809.3,1809.2,1.10588]
[1743357957189,10.59853575,1809.3,1809.2,1.4017]
[1743357957392,9.49271575,1809.3,1809.2,1.4017]
[1743357957595,10.59853575,1809.3,1809.2,1.4017]
[1743357957994,1.10588,1809.2,1809.1,0.008285]
[1743357958295,10.20941575,1809.2,1809.1,0.008285]
[1743357958494,10.20941575,1809.2,1809.1,1.114225]
[1743357958897,11.31529575,1809.2,1809.1,0.008285]
[1743357961107,10.20941575,1809.2,1809.1,1.114225]
[1743357961309,11.31529575,1809.2,1809.1,1.114225]
[1743357961508,11.31529575,1809.2,1809.1,0.008285]
[1743357964706,11.31529575,1809.2,1809.1,1.480485]
[1743357965804,10.20941575,1809.2,1809.1,2.586425]
[1743357966013,7.97381575,1809.2,1809.1,2.586425]
[1743357966205,1.5107,1809.4,1809.3,1.10578]
[1743357966509,0.008285,1809.5,1809.4,1.10575]
[1743357966712,7.98210075,1809.5,1809.4,1.10575]
[1743357966901,9.49280075,1809.5,1809.4,1.10575]
[1743357967105,10.59854075,1809.5,1809.1,0.008285]
[1743357967313,7.97381575,1809.4,1809.3,1.10579]
[1743357968813,7.97381575,1809.4,1809.3,1.83833791]
[1743357969217,7.97381575,1809.4,1809.3,2.51907685]
[1743357969411,9.07956575,1809.4,1809.3,1.41328685]
[1743357970814,10.45736575,1809.4,1809.3,1.41328685]
[1743357974518,9.35161575,1809.4,1809.3,2.51910685]
[1743357975109,9.35161575,1809.4,1809.3,2.51959341]
[1743357975309,7.97381575,1809.4,1809.3,2.51959341]
[1743357975511,2.52516,1809.9,1809.7,1.10555]
[1743357975716,2.52516,1809.9,1809.8,0.73302869]
[1743357975717,6.59216,1809.9,1809.8,0.73302869]
[1743357975918,2.52516,1809.9,1809.8,0.73302869]
[1743357976209,10.49897575,1809.9,1809.8,0.73302869]
[1743357976813,10.49897575,1809.9,1809.8,1.41377341]
[1743357977014,10.49897575,1809.9,1809.8,1.41363499]
[1743357978418,1.10578,1809.4,1809.2,2.47396]
[1743357978921,7.97381575,1809.3,1809.2,2.47398]
[1743357979508,9.07963575,1809.3,1809.1,1.114215]
[1743357979713,7.97381575,1809.2,1809.1,1.114215]
[1743357982825,0.7321,1809.4,1809.3,1.10582]
[1743357983025,8.70591575,1809.4,1809.3,1.10582]
[1743357983421,7.97381575,1809.4,1809.3,1.10582]
[1743357984121,0.7209,1809.7,1809.3,2.76455]
[1743357984417,7.97381575,1809.6,1809.4,4.6957]
[1743357984618,4.036,1809.8,1809.7,1.10552]
[1743357984817,12.00981575,1809.8,1809.7,1.10552]
[1743357985124,13.11532575,1809.8,1809.6,1.10558]
[1743357985325,7.97381575,1809.7,1809.6,1.10558]
[1743357986828,0.008285,1810.0,1809.9,1.10545]
[1743357987029,7.98210075,1810.0,1809.9,1.10545]
[1743357987826,7.98210075,1810.0,1809.9,2.53745]
[1743357989226,0.008285,1810.0,1809.9,3.28775]
[1743357990529,0.008285,1810.0,1809.9,4.01277841]
[1743357991027,1.3928,1810.3,1810.2,1.10527]
[1743357991223,9.36661575,1810.3,1810.2,1.83028801]
[1743357991428,7.97381575,1810.3,1810.2,1.83028801]
[1743357991628,4.86693939,1810.3,1810.2,3.20088801]
[1743357991829,4.86693939,1810.3,1810.2,3.87464258]
[1743357992221,0.008285,1810.4,1810.3,1.1052]
[1743357992426,0.008285,1810.4,1810.3,5.74431801]
[1743357992624,0.008285,1810.4,1810.3,5.74308139]
[1743357993023,0.008285,1810.4,1810.3,6.41683596]
[1743357993424,0.008285,1810.4,1810.3,7.11403596]
[1743357994327,4.87522439,1810.4,1810.3,7.11403596]
[1743357994528,4.87522439,1810.4,1810.3,6.41683596]
[1743357995827,0.008285,1810.4,1810.3,6.41683596]
[1743357996028,0.008285,1810.4,1810.3,6.96963596]
[1743357996329,0.008285,1810.4,1810.3,10.96563596]
[1743357996630,1.3906,1810.9,1810.8,1.1049]
[1743357996835,6.25753939,1810.9,1810.8,1.82868139]
[1743357997425,6.25753939,1810.9,1810.8,2.50243596]
[1743357997625,6.25753939,1810.9,1810.8,5.71023596]
[1743357998925,3.2078,1811.3,1811.2,1.10465]
[1743357999127,3.2078,1811.3,1811.2,1.82570493]
[1743357999337,9.17936939,1811.3,1811.1,1.112955]
[1743357999534,6.37333939,1811.2,1811.1,1.112955]
[1743357999733,6.37333939,1811.2,1811.1,1.83339817]
[1743357999931,6.37333939,1811.2,1811.1,2.50715274]
[1743358000235,3.2078,1811.3,1811.2,1.10465]
[1743358000430,8.07473939,1811.3,1811.2,1.10465]
[1743358000626,1.10465,1811.2,1811.1,0.68203957]
[1743358000836,8.16558939,1811.2,1811.1,1.40248274]
[1743358001028,7.06093939,1811.2,1811.1,1.78675957]
[1743358001633,8.16558939,1811.2,1811.1,0.68203957]
[1743358002137,7.06093939,1811.2,1811.1,0.68203957]
[1743358002351,7.06093939,1811.2,1811.1,1.78675957]
[1743358002537,8.16558939,1811.2,1811.1,0.68203957]
[1743358003237,12.15558939,1811.2,1811.1,0.68203957]
[1743358003735,11.05093939,1811.2,1811.1,1.78675957]
[1743358003935,11.05093939,1811.2,1811.1,0.68203957]
[1743358004135,11.05093939,1811.2,1811.1,1.78675957]
[1743358004339,6.37333939,1811.2,1811.1,1.78675957]
[1743358004638,6.37333939,1811.2,1811.1,2.50612211]
[1743358004941,1.84933,1811.4,1811.2,1.10462]
[1743358005136,1.84933,1811.4,1811.1,1.40140211]
[1743358005137,6.36393939,1811.3,1811.1,1.40140211]
[1743358005340,5.09565,1811.2,1811.1,0.68203957]
[1743358005540,11.45958939,1811.2,1811.1,0.68203957]
[1743358005840,7.46858939,1811.2,1811.1,0.68203957]
[1743358007542,1.10484,1810.9,1810.7,1.82433401]
[1743358007739,1.3789,1810.8,1810.7,1.82433401]
[1743358007932,6.24583939,1810.8,1810.7,1.10494]
[1743358008134,6.24583939,1810.8,1810.7,1.82433401]
[1743358008842,4.86693939,1810.8,1810.7,1.82433401]
[1743358009038,4.86693939,1810.8,1810.7,1.82469449]
[1743358009441,4.86693939,1810.8,1810.7,0.71975449]
[1743358009642,4.86693939,1810.8,1810.7,1.82471449]
[1743358010042,4.86693939,1810.8,1810.7,3.25971449]
[1743358010043,6.24583939,1810.8,1810.7,3.25971449]
[1743358012237,0.008285,1810.9,1810.8,1.1049]
[1743358012443,4.87522439,1810.9,1810.8,5.03245449]
[1743358013050,6.32402439,1810.9,1810.8,5.03245449]
[1743358014147,6.32402439,1810.9,1810.8,1.82465449]
[1743358015446,1.457085,1810.9,1810.8,5.03245449]
[1743358016153,1.457085,1810.9,1810.8,5.58525449]
[1743358016343,1.457085,1810.9,1810.8,5.03245449]
[1743358016549,1.457085,1810.9,1810.8,5.58525449]
[1743358017259,0.008285,1810.9,1810.8,12.68323349]
[1743358017467,0.008285,1810.9,1810.8,13.40423349]
[1743358019861,0.008285,1810.9,1810.8,14.07229407]
[1743358022372,0.008285,1810.9,1810.8,14.07766584]
[1743358022569,0.008285,1810.9,1810.8,6.97968684]
[1743358023156,0.7062,1811.4,1811.2,1.10462]
[1743358023361,7.46292939,1811.3,1811.2,1.10462]
[1743358023567,6.35833939,1811.3,1811.2,1.83002123]
[1743358024164,6.35833939,1811.3,1811.2,2.49808181]
[1743358025065,7.46292939,1811.3,1811.2,2.49808181]
[1743358025563,7.46292939,1811.3,1811.2,1.39346181]
[1743358025769,14.82771939,1811.3,1810.6,3.768885]
[1743358025968,1.10486,1810.9,1810.7,3.03502]
[1743358026168,6.32323939,1810.8,1810.7,3.03502]
[1743358026365,1.4563,1810.8,1810.7,3.03502]
[1743358026568,6.32323939,1810.8,1810.7,3.03502]
[1743358026866,6.32323939,1810.8,1810.7,1.3773]
[1743358027170,1.10496,1810.7,1810.6,0.008285]
[1743358027371,10.63599939,1810.7,1810.6,0.008285]
[1743358028371,1.10517,1810.4,1810.2,3.2078]
[1743358028572,2.1551,1810.3,1810.2,4.31307]
[1743358028770,7.02203939,1810.3,1810.2,4.31307]
[1743358028965,8.12723939,1810.3,1810.2,3.2078]
[1743358029172,8.12723939,1810.3,1810.2,4.31307]
[1743358029173,7.02203939,1810.3,1810.2,4.31307]
[1743358029567,7.02203939,1810.3,1810.1,3.340585]
[1743358029769,4.86693939,1810.2,1810.1,2.611515]
[1743358029969,6.31543939,1810.2,1810.1,2.611515]
[1743358033677,11.33170939,1810.2,1810.1,0.008285]
[1743358034962,10.22643939,1810.2,1810.1,1.113615]
[1743358035168,6.31543939,1810.2,1810.1,2.545115]
[1743358036075,6.31543939,1810.2,1810.1,3.097915]
[1743358036278,6.31543939,1810.2,1810.1,2.545115]
[1743358036578,6.31543939,1810.2,1810.1,3.097915]
[1743358039779,6.31543939,1810.2,1810.1,2.545115]
[1743358039982,6.31543939,1810.2,1810.1,3.097915]
[1743358040178,6.31543939,1810.2,1810.1,2.545115]
[1743358040580,6.31543939,1810.2,1810.1,3.097915]
[1743358040775,6.31543939,1810.2,1810.1,0.008285]
[1743358041080,7.42070939,1810.2,1810.1,0.008285]
[1743358041376,7.42070939,1810.2,1810.1,1.113615]
[1743358041377,6.31543939,1810.2,1810.1,1.113615]
[1743358041576,6.31543939,1810.2,1810.1,2.625015]
[1743358046085,4.86693939,1810.2,1810.1,2.625015]
[1743358046287,4.86693939,1810.2,1810.1,3.341515]
[1743358047083,4.86693939,1810.2,1810.1,5.304015]
[1743358047581,2.091,1810.3,1810.2,1.10527]
[1743358047781,6.95793939,1810.3,1810.2,5.69537]
[1743358051785,8.06313939,1810.3,1810.2,3.2078]
[1743358051987,6.95793939,1810.3,1810.2,4.31307]
[1743358052292,6.95793939,1810.3,1810.2,5.76977]
[1743358054690,6.95793939,1810.3,1810.2,3.2078]
[1743358054691,8.06313939,1810.3,1810.2,3.2078]
[1743358054883,1.10527,1810.2,1810.1,1.970785]
[1743358055083,10.11973939,1810.2,1809.8,3.2078]
[1743358055300,1.10545,1810.0,1809.8,1.10551]
[1743358055490,4.5853,1809.9,1809.8,1.10551]
[1743358055687,10.84703939,1809.9,1809.8,1.10551]
[1743358055993,4.971485,1810.4,1810.1,1.10527]
[1743358056188,1.4474,1810.2,1810.1,1.10533]
[1743358056389,1.4474,1810.2,1810.1,1.65813]
[1743358056593,6.31433939,1810.2,1810.1,1.65813]
[1743358057694,4.86693939,1810.2,1810.1,1.65813]
[1743358059091,6.25613939,1810.2,1810.1,1.65813]
[1743358062096,1.3892,1810.2,1810.1,1.65813]
[1743358062292,0.008285,1810.4,1810.3,1.1052]
[1743358062593,5.3805,1811.0,1810.9,1.10484]
[1743358062797,2.1727,1811.0,1810.9,1.10484]
[1743358063000,7.03963939,1811.0,1810.9,1.10484]
[1743358064098,6.29963939,1811.0,1810.9,1.10484]
[1743358064293,0.008285,1811.1,1811.0,1.10478]
[1743358064497,4.87522439,1811.1,1811.0,1.10478]
[1743358064703,6.30792439,1811.1,1811.0,1.10478]
[1743358066501,1.10481,1811.0,1810.8,1.113145]
[1743358066801,6.32393939,1811.0,1810.9,1.10484]
[1743358067004,1.457,1811.0,1810.9,1.10484]
[1743358067303,6.32393939,1811.0,1810.9,1.10484]
[1743358070006,6.32393939,1811.0,1810.9,2.59804]
[1743358071002,4.86693939,1811.0,1810.9,2.59804]
[1743358073704,4.86693939,1811.0,1810.9,5.80584]
[1743358075703,4.86693939,1811.0,1810.9,2.59804]
[1743358076105,4.86693939,1811.0,1810.9,3.15084]
[1743358076299,4.86693939,1811.0,1810.8,0.008285]
[1743358076510,6.26373939,1810.9,1810.8,1.113185]
[1743358076709,1.3968,1810.9,1810.8,1.113185]
[1743358077009,6.26373939,1810.9,1810.8,1.113185]
[1743358077203,7.02233939,1810.9,1810.8,1.113185]
[1743358078606,8.12717939,1810.9,1810.8,0.008285]
[1743358078812,19.32130939,1810.9,1810.2,5.2252]
[1743358079008,4.31284,1810.6,1810.4,1.10513]
[1743358079310,1.5185,1810.5,1810.4,1.10513]
[1743358079512,6.38543939,1810.5,1810.4,1.10513]
[1743358081217,7.13753939,1810.5,1810.3,0.008285]
[1743358081524,6.27443939,1810.4,1810.3,0.008285]
[1743358081817,2.51264,1810.4,1810.3,0.008285]
[1743358082015,2.51264,1810.4,1810.3,1.113485]
[1743358082016,4.86693939,1810.4,1810.3,1.113485]
[1743358082216,4.86693939,1810.4,1810.3,3.325985]
[1743358082423,2.1596,1810.8,1810.7,1.10496]
[1743358082721,0.7521,1810.8,1810.7,1.10496]
[1743358083017,5.61903939,1810.8,1810.7,1.10496]
[1743358083418,4.86693939,1810.8,1810.7,1.10496]
[1743358084019,4.86693939,1810.8,1810.7,2.60126]
[1743358087819,1.10427,1811.9,1810.9,2.7621]
[1743358088018,3.2078,1812.3,1812.2,1.10405]
[1743358088225,3.2078,1812.3,1812.2,1.65605]
[1743358088418,3.2078,1812.3,1812.0,0.552]
[1743358088419,8.14219939,1812.3,1812.0,0.552]
[1743358088721,7.11229939,1812.2,1811.6,3.2078]
[1743358089019,7.171085,1812.1,1811.9,1.10417]
[1743358089218,9.60548439,1812.1,1811.7,9.0893021]
[1743358089420,2.43439939,1812.0,1811.9,1.10422]
[1743358091317,2.43439939,1812.0,1811.9,2.55322]
[1743358091715,0.008285,1812.1,1812.0,1.10417]
[1743358092017,2.43439939,1812.0,1811.9,1.1042]
[1743358093823,3.53857939,1812.0,1811.7,0.008285]
[1743358094021,5.64219939,1811.9,1811.8,1.10429]
[1743358094222,3.2078,1811.9,1811.8,1.10429]
[1743358094527,5.64219939,1811.9,1811.8,1.10429]
[1743358094920,6.74644939,1811.9,1811.7,1.112625]
[1743358095120,3.16339939,1811.8,1811.7,1.112625]
[1743358095323,3.16339939,1811.8,1811.7,0.008285]
[1743358095625,4.26768939,1811.8,1811.7,0.008285]
[1743358095827,8.21368939,1811.8,1811.7,0.008285]
[1743358096123,7.10939939,1811.8,1811.7,0.008285]
[1743358097123,10.71368939,1811.8,1811.7,0.008285]
[1743358098431,7.175,1811.8,1811.3,3.2078]
[1743358098625,2.76134,1811.4,1810.6,0.41887273]
[1743358098832,3.2078,1811.0,1810.6,2.47787273]
[1743358099127,3.2078,1811.0,1810.9,1.10484]
[1743358100122,3.2078,1811.0,1810.9,2.61104]
[1743358101529,0.008285,1811.1,1811.0,1.10478]
[1743358101730,0.008285,1811.1,1811.0,3.34118]
[1743358102528,1.4166,1811.5,1811.4,1.10453]
[1743358105834,4.6244,1811.5,1811.4,1.10453]
[1743358106135,4.6244,1811.5,1811.0,3.49385]
[1743358106136,1.10458,1811.4,1811.0,0.732]
[1743358106339,4.664,1811.3,1811.2,1.1046]
[1743358106635,1.4562,1811.3,1811.2,1.1046]
[1743358107132,4.664,1811.3,1811.2,1.1046]
[1743358108432,5.3494,1811.3,1811.2,1.1046]
[1743358110431,6.0806,1811.3,1811.2,1.1046]
[1743358111732,4.664,1811.3,1811.2,1.1046]
[1743358113737,1.4562,1811.3,1811.2,1.1046]
[1743358116134,1.4562,1811.3,1811.2,1.6574]
[1743358120041,1.4562,1811.3,1811.2,1.1046]
[1743358123044,4.664,1811.3,1810.9,1.2779]
[1743358123243,1.10478,1811.0,1810.9,1.10482]
[1743358123444,4.31257,1811.1,1810.9,1.10482]
[1743358123643,2.9146,1811.0,1810.9,1.10482]
[1743358125947,3.2078,1811.1,1811.0,1.10478]
[1743358126148,3.872,1811.2,1811.1,1.10472]
[1743358126645,1.4472,1811.2,1811.1,1.10472]
[1743358127044,1.4472,1811.2,1811.1,1.79432]
[1743358130244,3.2078,1811.5,1811.4,1.10453]
[1743358130451,1.4936,1811.7,1811.6,1.10441]
[1743358130645,3.2078,1811.9,1811.6,1.10441]
[1743358130949,4.7014,1811.9,1811.8,1.10429]
[1743358132546,0.6871,1812.2,1812.1,1.10411]
[1743358132751,1.4562,1812.2,1812.1,1.10411]
[1743358133148,3.2078,1812.4,1812.3,1.10398]
[1743358133350,0.7361,1812.8,1812.5,1.10386]
[1743358133351,3.2078,1812.6,1812.5,1.10386]
[1743358134243,1.4562,1812.9,1812.8,1.10368]
[1743358134549,1.4562,1812.9,1812.4,0.008285]
[1743358134755,0.7361,1812.8,1812.4,0.008285]
[1743358134957,1.4562,1812.7,1812.4,0.008285]
[1743358135162,3.2078,1812.8,1812.7,1.10374]
[1743358135349,3.2078,1812.8,1812.5,8.71003228]
[1743358135549,3.2078,1812.8,1812.7,1.10374]
[1743358137450,3.2078,1812.8,1812.5,2.0279]
[1743358137451,3.2078,1812.8,1812.5,1.4759]
[1743358137653,3.2078,1812.8,1812.7,1.10374]
[1743358138147,3.2078,1812.8,1812.7,1.10371]
[1743358138547,0.7552,1812.9,1812.7,1.10371]
[1743358139154,0.7552,1812.9,1812.8,1.10368]
[1743358139651,0.7552,1812.9,1812.5,4.23549]
[1743358139652,3.2078,1813.0,1812.9,1.10362]
[1743358141060,3.2078,1813.2,1812.7,7.36434]
[1743358141258,8.21914,1813.4,1812.7,7.36434]
[1743358141459,7.1158,1813.4,1812.8,10.04226969]
[1743358141754,3.2078,1813.4,1812.9,1.5179]
[1743358141955,7.1138,1813.4,1813.2,1.10339]
[1743358142155,7.1118,1813.4,1813.3,1.10338]
[1743358142562,7.1118,1813.4,1813.2,1.10341]
[1743358142753,7.1118,1813.4,1813.3,1.10338]
[1743358143260,3.2078,1813.4,1813.3,1.10338]
[1743358143661,3.2078,1813.7,1813.4,2.75829]
[1743358143863,3.2078,1813.7,1813.6,1.10319]
[1743358144365,0.7502,1813.9,1813.8,1.10307]
[1743358144768,6.458,1813.9,1813.4,0.008285]
[1743358144955,3.2078,1813.5,1813.4,1.111595]
[1743358145156,3.2078,1813.7,1813.4,0.008285]
[1743358145357,3.958,1813.9,1813.7,1.10311]
[1743358145556,0.7502,1813.9,1813.8,1.10307]
[1743358145758,3.2078,1814.8,1814.0,2.75735]
[1743358146064,55.05729,1817.0,1813.6,10.288]
[1743358146065,3.2078,1815.2,1814.6,3.2078]
[1743358146364,3.2078,1815.4,1814.8,3.2078]
[1743358146567,3.2078,1815.9,1815.8,1.10186]
[1743358146761,3.2078,1816.1,1815.8,0.5512]
[1743358147066,3.2078,1815.9,1815.8,0.55946059]
[1743358147262,3.2078,1816.1,1815.8,0.55946059]
[1743358147466,3.2078,1816.9,1816.0,3.2078]
[1743358147659,33.31169995,1817.9,1816.9,0.5504]
[1743358147857,3.2078,1817.8,1817.7,4.3085]
[1743358148055,3.2078,1817.8,1817.1,0.5504]
[1743358148056,3.2078,1817.8,1817.3,3.2078]
[1743358148265,3.2078,1817.7,1817.5,3.2078]
[1743358148563,27.80771957,1817.9,1817.8,1.10064]
[1743358148763,3.2078,1817.8,1817.6,11.80634205]
[1743358148958,7.5968,1817.9,1817.4,3.2078]
[1743358149163,3.2078,1817.9,1817.4,3.2078]
[1743358149364,1.10074,1817.7,1817.4,3.2078]
[1743358149564,3.2078,1817.8,1817.4,3.2078]
[1743358149565,4.417,1817.8,1817.4,3.2078]
[1743358149766,4.30863,1817.5,1817.2,0.00826059]
[1743358149962,5.8852,1817.4,1817.2,0.00826059]
[1743358150163,1.10113,1817.0,1816.7,0.5504]
[1743358150366,9.1285,1816.9,1815.8,4.647]
[1743358150565,3.2078,1816.2,1816.1,1.13845986]
[1743358150770,4.436,1816.5,1816.1,1.13845986]
[1743358150969,4.436,1816.5,1816.2,0.5512]
[1743358151172,3.2078,1817.2,1817.0,1.1011]
[1743358151368,3.2078,1817.1,1817.0,1.1011]
[1743358151583,0.00817921,1817.3,1816.7,3.2078]
[1743358151774,4.70867921,1817.3,1816.9,4.30895]
[1743358151977,3.2078,1817.2,1817.0,1.1011]
[1743358152168,1.50087921,1817.3,1817.0,7.19811377]
[1743358152367,3.2078,1817.2,1817.1,3.2078]
[1743358152573,3.2078,1817.2,1816.9,1.10116]
[1743358152768,3.2078,1817.1,1817.0,3.2078]
[1743358152973,1.10134,1816.7,1816.3,0.5512]
[1743358153172,3.2078,1816.4,1816.3,0.5512]
[1743358153381,3.19953941,1816.6,1816.4,7.31434543]
[1743358153574,3.2078,1816.8,1816.4,8.74144543]
[1743358153777,3.2078,1816.8,1816.5,5.75825369]
[1743358153975,3.2078,1817.0,1816.9,1.10119]
[1743358154279,3.2078,1817.0,1816.6,1.4271]
[1743358154280,3.2078,1817.0,1816.8,1.1012]
[1743358154576,3.2078,1817.0,1816.9,1.10119]
[1743358154777,3.2078,1817.0,1816.9,5.831554]
[1743358154979,3.2078,1818.9,1817.7,3.2078]
[1743358155174,1.4239,1819.1,1819.0,1.09992]
[1743358155382,0.0207838,1820.3,1819.0,54.1078]
[1743358155683,0.0207838,1820.3,1820.2,4.30699]
[1743358155876,0.0207838,1820.3,1820.2,4.85659]
[1743358156177,3.2078,1821.2,1820.2,16.16603094]
[1743358156385,3.2078,1821.1,1821.0,3.2078]
[1743358156682,3.2078,1821.1,1820.3,3.7574]
[1743358156683,1.35392,1820.4,1820.3,3.7574]
[1743358156879,1.35392,1820.4,1820.3,3.2078]
[1743358157178,1.35392,1820.0,1819.5,0.5496]
[1743358157478,3.2078,1819.9,1819.6,0.5496]
[1743358157680,1.35392,1820.0,1819.8,3.2078]
[1743358157884,3.2078,1820.0,1819.6,10.8619466]
[1743358158184,1.35392,1819.7,1819.4,3.7574]
[1743358158385,1.35392,1819.4,1819.0,0.5496]
[1743358158583,2.74823,1820.1,1818.8,3.2078]
[1743358158584,1.35392,1819.0,1818.8,3.2078]
[1743358158784,6.13876,1819.3,1818.8,3.2078]
[1743358158980,1.35392,1819.0,1818.9,0.5504]
[1743358159280,3.2078,1819.0,1818.9,0.0082361]
[1743358159481,5.66164,1819.0,1818.9,0.0082361]
[1743358159780,9.0104,1820.4,1819.6,1.09955]
[1743358159978,1.35392,1819.9,1819.7,3.2078]
[1743358160175,1.35392,1819.9,1819.7,1.09949]
[1743358160375,1.35392,1819.8,1819.1,3.2078]
[1743358160674,1.35392,1819.5,1819.2,1.09978]
[1743358160878,1.4558,1819.4,1819.3,0.0082361]
[1743358161071,5.76328,1819.4,1819.3,0.0082361]
[1743358161269,6.01752,1819.4,1819.3,8.163e-05]
[1743358161469,9.6172,1819.4,1819.3,8.163e-05]
[1743358163176,2.80972,1819.4,1819.3,8.163e-05]
[1743358163383,3.9094,1819.4,1819.3,8.163e-05]
[1743358163579,2.80972,1819.4,1819.3,8.163e-05]
[1743358163786,3.9094,1819.4,1819.3,8.163e-05]
[1743358163973,6.4094,1819.4,1819.3,8.163e-05]
[1743358165282,2.80972,1819.4,1819.3,8.163e-05]
[1743358165488,3.9094,1819.4,1819.3,8.163e-05]
[1743358165683,7.90672,1819.4,1819.3,8.163e-05]
[1743358165883,9.0064,1819.4,1819.3,8.163e-05]
[1743358166187,11.5064,1819.4,1819.3,8.163e-05]
[1743358166488,9.0064,1819.4,1819.3,8.163e-05]
[1743358167277,10.40672,1819.4,1818.7,0.5504]
[1743358167488,10.40672,1819.4,1818.1,9.736]
[1743358167489,4.56163837,1818.8,1818.0,3.2078]
[1743358167686,1.1005,1818.1,1817.9,0.5504]
[1743358167880,1.1007,1817.7,1817.4,3.2078]
[1743358168081,1.10095,1817.3,1817.2,3.2078]
[1743358168385,1.10095,1817.3,1817.1,0.67040983]
[1743358168386,2.45484837,1817.2,1817.1,0.67040983]
[1743358168582,3.90114837,1817.2,1817.1,0.67864593]
[1743358168883,3.90114837,1817.2,1817.1,0.0082361]
[1743358169490,6.40114837,1817.2,1817.1,0.0082361]
[1743358169690,6.40114837,1817.2,1816.4,3.7582]
[1743358169691,1.10136,1816.7,1816.4,3.7582]
[1743358169883,1.35383837,1816.6,1816.4,3.759]
[1743358170378,1.10132,1816.7,1816.4,3.759]
[1743358170579,2.45521837,1816.6,1816.4,3.759]
[1743358170779,2.45526837,1816.5,1816.4,3.2160361]
[1743358170983,1.35383837,1816.6,1816.4,3.2160361]
[1743358171878,3.2078,1816.9,1816.4,3.2160361]
[1743358172084,8.3128,1817.1,1816.7,1.10127]
[1743358172387,1.35383837,1816.7,1816.5,3.2078]